Cogmind - Beta 12 @@@ ROGUE MODE // 2023.05.15 @ 20:54:58 Player: Infomantis Result: Destroyed by Enhanced Grunt with Neutron Cannon Performance ------------- Evolutions (3) 1500 Regions Visited (12) 2400 Robots Destroyed (108) 540 Value Destroyed (4588) 4588 Prototype IDs (239) 4780 Alien Tech Used (0) 0 Bonus (6619) 6619 TOTAL SCORE: 20427 Bonus ------- High Alert Combat Kills 484 Follower Combat Kills 782 Entered Garrisons 400 Used RIF Installer 1500 Aligned with FarCom 300 Met Data Miner 300 Used Data Conduit 3000 Friendly Fire -147 Cogmind --------- Core Integrity 0/700 Matter 276/300 Energy 95/100 System Corruption 1% Temperature Cool (0) Movement Core (400) Ox7 Location -7/Data Miner Parts ------- > --- POWER (1) -------- (None) > --- PROPULSION (4) --- (None) > --- UTILITY (6) ------ Improved Heat Sink Large Storage Unit Relay Coupler [NC] (22) Relay Coupler [Grunt] (17) > --- WEAPON (2) ------- Makeshift Sword > --- INVENTORY (15) --- Improved Deuterium Engine Makeshift Power Source Relay Coupler [NC] (31) Relay Coupler [Grunt] (25) Relay Coupler [Hunter] (12) Relay Coupler [Behemoth] (11) System Restoration Module PSU Rigger Datajack Remote Datajack Remote Datajack Peak State ------------ > --- POWER ------------ Improved Deuterium Engine > --- PROPULSION ------- Light Treads Armored Treads Medium Treads Armored Wheel > --- UTILITY ---------- Improved Heat Sink Large Storage Unit Machine Analyzer Microactuators Layered Light Armor Plating Relay Coupler [Sentry] > --- WEAPON ----------- Flak Gun Katana > --- INVENTORY -------- Light Nuclear Core Light Treads Authchip [R/Combat] Relay Coupler [NC] Relay Coupler [NC] Relay Coupler [Grunt] Relay Coupler [Grunt] Relay Coupler [Sentry] Relay Coupler [Hunter] Relay Coupler [Behemoth] PSU Rigger Gauss Rifle Rocket Launcher Datajack Remote Datajack [Rating: 45] Favorites ----------- Power Micro Nuclear Core Engine Light Ion Engine Power Core Micro Nuclear Core Propulsion Light Treads Treads Light Treads Leg Aluminum Leg Wheel Armored Wheel Hover Unit Improved Hover Unit Utility Large Storage Unit Device Improved Heat Sink Storage Large Storage Unit Processor Machine Analyzer Hackware Relay Coupler [NC] Protection Layered Light Armor Plating Weapon Flak Gun Energy Gun Gatling Laser Energy Cannon Beam Cannon Ballistic Gun Flak Gun Launcher Rocket Launcher Special Weapon Remote Datajack Impact Weapon Heavy Flail Slashing Weapon Katana Special Melee Weapon Datajack Build | -11 -10 -10 -10 -9 -8 -8 -8 -8 -7 -7 -7 -7 ------- Run | Jun Mat Min Exi Min Mat Gar Mat Gar Fac Low Low Dat Slots Evolved 6 | . . . . . 4 . . . 2 . . . Power . | . . . . . . . . . . . . . Propulsion 2 | . . . . . 2 . . . . . . . Utility 4 | . . . . . 2 . . . 2 . . . Weapon . | . . . . . . . . . . . . . Parts Attached 158 | 7 3 2 4 6 10 19 28 26 40 5 1 7 Power 15 | 1 . 1 1 1 1 1 3 2 4 . . . Engine 9 | 1 . 1 . . 1 . 3 1 2 . . . Core 6 | . . . 1 1 . 1 . 1 2 . . . Reactor . | . . . . . . . . . . . . . Propulsion 39 | 2 . . 2 . 2 6 12 4 9 . . 2 Treads 22 | 2 . . 2 . . . 9 4 5 . . . Leg 12 | . . . . . . 5 3 . 3 . . 1 Wheel 4 | . . . . . 2 . . . 1 . . 1 Hover 1 | . . . . . . 1 . . . . . . Flight . | . . . . . . . . . . . . . Utility 37 | 2 3 . 1 2 3 3 3 7 10 2 . 1 Device 12 | 1 2 . . 1 1 1 . 2 4 . . . Storage 6 | 1 1 . 1 1 . 1 1 . . . . . Processor 2 | . . . . . 1 . . . 1 . . . Hackware 5 | . . . . . 1 . 1 1 1 1 . . Protection 12 | . . . . . . 1 1 4 4 1 . 1 Artifact . | . . . . . . . . . . . . . Weapon 67 | 2 . 1 . 3 4 9 10 13 17 3 1 4 Energy Gun 7 | . . . . 2 . . 1 . 3 . . 1 Energy Cannon 1 | . . 1 . . . . . . . . . . Ballistic Gun 29 | 2 . . . . 3 2 7 4 7 2 1 1 Ballistic Cannon . | . . . . . . . . . . . . . Launcher 11 | . . . . 1 . 4 1 3 2 . . . Special Weapon 5 | . . . . . . . . . 4 1 . . Impact Weapon 3 | . . . . . 1 2 . . . . . . Slashing Weapon 6 | . . . . . . . . 3 1 . . 2 Piercing Weapon . | . . . . . . . . . . . . . Special Melee Weapon 5 | . . . . . . 1 1 3 . . . . Unidentified Prototypes 3 | . . . . . . . 3 . . . . . Corrupted Parts 1 | . . . . . . 1 . . . . . . System Corruption 1 | . . . . . . 1 . . . . . . Parts Lost 42 | . 1 2 . 6 1 11 . 3 6 1 2 9 Power 8 | . . 1 . 2 . 1 . 1 2 . . 1 Propulsion 18 | . . . . . 1 7 . 2 2 1 1 4 Utility 7 | . 1 . . 1 . 1 . . 1 . 1 2 Weapon 9 | . . 1 . 3 . 2 . . 1 . . 2 Highest Loss Streak 9 | . 1 1 . 3 1 6 . 3 2 1 2 9 To Critical Strikes . | . . . . . . . . . . . . . Average Slot Usage (%) 90 | . 99 99 100 88 86 54 96 97 93 95 89 85 Engine 5 | . 14 13 10 . 7 1 7 8 4 . . . Core 2 | . . . 3 6 . 1 . . 2 7 7 7 Treads 23 | . 28 28 28 28 17 . 27 33 22 26 21 13 Leg 1 | . . . . . . 7 5 . . . . 5 Wheel 1 | . . . . . 18 4 . . 4 . . 4 Device 6 | . 13 14 14 13 9 1 . . 5 7 7 7 Storage 9 | . 14 14 14 14 9 5 9 9 7 7 7 7 Processor 4 | . . . . . 5 9 9 9 7 . . . Hackware 8 | . . . . . 1 9 9 9 12 18 15 15 Protection 5 | . . . . . . 1 9 8 6 10 13 12 Energy Gun 1 | . . . . 6 1 . . . 1 7 7 . Energy Cannon 2 | . . 12 14 10 . . . . . . . . Ballistic Gun 10 | . 28 14 14 . 15 4 14 10 10 6 7 1 Launcher 1 | . . . . 7 1 3 . 2 . . . . Naked Turns . | . . . . . . . . . . . . . Heaviest Build 49 | 13 28 29 31 33 37 36 37 40 49 47 47 45 Greatest Support 88 | 40 40 40 40 40 20 35 80 80 88 60 60 40 Greatest Overweight (x) 4 | . . . . . 1 2 2 . 4 . . 3 Average Overweight (x) . | . . . . . 1 . . . 1 . . 2 Largest Inventory Capacity 15 | 8 15 15 15 15 15 15 15 15 15 15 15 15 Average Capacity 14 | 7 13 15 15 15 15 11 15 15 15 15 15 15 Most Carried 15 | 7 15 15 15 15 15 15 15 15 15 15 15 15 Average Carried 13 | 3 11 14 14 13 14 10 14 14 14 14 15 12 Final Capacity 15 | 8 15 15 15 15 15 15 15 15 15 15 15 15 Final Carried 15 | 7 15 14 15 15 15 15 15 14 15 15 15 11 Class Distribution -------------------- 63% | Bothacker-Mutant 18% | Mutant 10% | Scavenger-Mutant 6% | Trapper-Mutant Dominant Class ---------------- Mutant | -10/Materials Mutant | -10/Mines Scavenger-Mutant | -10/Exiles Trapper-Mutant | -9/Mines Trapper-Mutant | -8/Materials Mutant | -8/Garrison Bothacker-Mutant | -8/Materials Bothacker-Mutant | -8/Garrison Bothacker-Mutant | -7/Factory Bothacker-Mutant | -7/Lower Caves Bothacker-Mutant | -7/Lower Caves Bothacker-Mutant | -7/Data Miner Resources | -11 -10 -10 -10 -9 -8 -8 -8 -8 -7 -7 -7 -7 ----------- Run | Jun Mat Min Exi Min Mat Gar Mat Gar Fac Low Low Dat Matter Collected 3429 | 318 223 64 . 138 142 386 509 569 763 246 45 26 Remotely . | . . . . . . . . . . . . . Salvage Created 3703 | 108 458 282 . 321 142 423 123 549 849 143 113 192 Parts 199 | 9 32 14 . 16 13 19 11 14 52 2 5 12 Haulers Intercepted 4 | . 1 . . . . . 2 . 1 . . . Recyclers Shooed 2 | . . . . . . . . . 2 . . . Parts Field Recycled . | . . . . . . . . . . . . . Retrieved Matter . | . . . . . . . . . . . . . Parts Self-Destructed 7 | . . . . . . . . . . 2 5 . Prevented . | . . . . . . . . . . . . . Kills | -11 -10 -10 -10 -9 -8 -8 -8 -8 -7 -7 -7 -7 ------- Run | Jun Mat Min Exi Min Mat Gar Mat Gar Fac Low Low Dat Combat Hostiles Destroyed 88 | . 9 8 . 10 2 14 1 13 22 3 4 2 Melee 3 | . . . . . . 2 . . . . . 1 Guns 51 | . 9 5 . 2 2 5 1 4 15 3 4 1 Cannons 6 | . . 3 . 3 . . . . . . . . AOE 27 | . . . . 5 . 6 . 9 7 . . . Classes Destroyed 17 | 2 3 1 . 2 3 2 . 1 2 1 . . Worker 1 | . . . . . . . . . 1 . . . Tunneler 5 | 3 1 . . 1 . . . . . . . . Hauler 4 | . 1 . . . . . 2 . 1 . . . Recycler 4 | 1 . 1 . . . . . . 2 . . . Mechanic 1 | . . . . . 1 . . . . . . . Operator 1 | . . . . . 1 . . . . . . . Watcher 3 | . 1 . . . . 1 1 . . . . . Swarmer 26 | . . 6 . . . 6 1 3 7 . 3 . Grunt 37 | . 9 2 . 8 . 6 . 5 6 1 . . Brawler 1 | . . . . . . . . . . 1 . . Duelist 3 | . . . . 1 . . . 2 . . . . Sentry 7 | . . . . . 2 . . . 3 1 1 . Demolisher 1 | . . . . . . 1 . . . . . . Specialist 1 | . . . . . . . . 1 . . . . Hunter 5 | . . . . . . 1 . 3 1 . . . Programmer 5 | . . . . . . . . . 5 . . . Enhanced Grunt 2 | . . . . . . . . . . . . 2 Assembled 1 | . . . . 1 . . . . . . . . Best Kill Streak 8 | 1 4 4 . 5 2 4 1 4 8 3 3 1 Combat Bots Only 6 | . 4 3 . 4 1 4 1 4 6 3 3 1 Max Kills in Single Turn 3 | 1 1 1 . 1 1 2 1 2 3 1 1 1 Gunslinging . | . . . . . . . . . . . . . Exploded 3 | . . . . 1 . 2 . 2 3 . . . Melee 1 | . . . . . . 1 . . . . . 1 Uniques/NPCs Destroyed 1 | . . . . . . . . . . . . 1 Data Miner (-7/Data Miner) Combat | -11 -10 -10 -10 -9 -8 -8 -8 -8 -7 -7 -7 -7 -------- Run | Jun Mat Min Exi Min Mat Gar Mat Gar Fac Low Low Dat Damage Taken 7240 | . 425 204 . 593 163 1055 264 898 1512 302 386 1438 Core 1268 | . 35 30 . 61 25 266 38 83 106 15 56 553 Absorbed by Shields 261 | . . . . . . 261 . . . . . . Redirected to Shielding 94 | . . . . . . . . . . . 3 91 Core Remaining (%) 58 | 100 . . . 49 . . . 25 . . . . Volleys Fired 246 | 8 33 14 . 22 8 31 13 35 58 10 9 5 Largest 2 | 2 2 2 . 2 2 2 2 2 2 2 2 2 Hottest 108 | 40 40 80 . 100 56 56 46 46 108 108 108 108 Shots Fired 434 | 16 66 26 . 41 16 49 26 48 103 16 18 9 Gun 359 | 16 66 18 . 17 16 39 26 27 94 13 18 9 Cannon 21 | . . 8 . 13 . . . . . . . . Launcher 46 | . . . . 11 . 10 . 21 4 . . . Special 8 | . . . . . . . . . 5 3 . . Kinetic 313 | 16 66 18 . 1 16 39 26 27 83 7 9 5 Thermal 59 | . . 8 . 21 . . . . 11 6 9 4 Explosive 46 | . . . . 11 . 10 . 21 4 . . . Electromagnetic 8 | . . . . 8 . . . . . . . . Robot Hit Streak 12 | 3 8 6 . 12 6 5 7 6 9 7 4 9 Robot Miss Streak 11 | 2 4 3 . 3 3 5 11 3 9 2 5 3 Penetration Max . | . . . . . . . . . . . . . Secondary Targets 9 | . 3 . . . . 2 . 2 2 . . . Max Gunslinging Chain 1 | . 1 . . . . 1 . 1 1 . . . Shots Hit Robots 338 | 7 44 15 . 27 9 36 19 47 77 15 17 25 Core Hits 256 | 4 23 11 . 14 4 18 7 43 88 13 15 16 Critical Kills 2 | . . . . . . 2 . . . . . . Critical Parts Destroyed 4 | . 1 . . . 1 1 1 . . . . . Critical Strikes 10 | . 1 . . 1 1 3 1 . . . . 3 Burn 1 | . . . . 1 . . . . . . . . Destroy 4 | . 1 . . . 1 1 1 . . . . . Smash 2 | . . . . . . 2 . . . . . . Sever 3 | . . . . . . . . . . . . 3 Melee Attacks 100 | . . . . . 1 30 3 34 3 . . 29 Impact 28 | . . . . . 1 27 . . . . . . Slashing 53 | . . . . . . . . 21 3 . . 29 Piercing . | . . . . . . . . . . . . . Sneak Attacks 19 | . . . . . . 3 3 12 . . . 1 Combat Hostiles . | . . . . . . . . . . . . . Follow-up Attacks . | . . . . . . . . . . . . . Damage Inflicted 9206 | 88 563 229 . 848 178 1119 211 2332 2314 253 260 811 Guns 4090 | 87 563 153 . 151 177 309 211 276 1481 253 260 169 Cannons 260 | . . 69 . 191 . . . . . . . . Explosions 3095 | . . . . 491 . 309 . 1507 788 . . . Melee 1689 | . . . . . . 498 . 549 . . . 642 Ramming 72 | 1 . 7 . 15 1 3 . . 45 . . . Kinetic 3321 | 87 563 153 . 11 177 309 211 276 1183 121 126 104 Thermal 1068 | . . 69 . 326 . . . . 342 132 134 65 Explosive 2970 | . . . . 413 . 309 . 1507 741 . . . Electromagnetic 86 | . . . . 83 . . . . 3 . . . Impact 498 | . . . . . . 498 . . . . . . Slashing 1191 | . . . . . . . . 549 . . . 642 Piercing . | . . . . . . . . . . . . . Highest Corruption 1 | . . . . . . 1 1 1 1 1 1 1 Average Corruption 1 | . . . . . . 1 1 1 1 1 1 1 Corruption Purged 1 | . . . . . . . . . 1 . . . Corruption Blocked . | . . . . . . . . . . . . . Effects 43 | . . . . . . 1 8 11 9 12 2 . Message Errors 7 | . . . . . . 1 1 1 1 1 2 . Matter Fused 17 | . . . . . . . 4 3 5 5 . . Heat Flow Errors 3 | . . . . . . . 1 1 . 1 . . Energy Discharges 7 | . . . . . . . 1 2 1 3 . . Data Loss (minor) 5 | . . . . . . . 1 2 1 1 . . Data Loss (major) 2 | . . . . . . . . 2 . . . . Misfires 1 | . . . . . . . . . 1 . . . Weapon Failures 1 | . . . . . . . . . . 1 . . Overload Shots . | . . . . . . . . . . . . . Overflow Damage 236 | . . . . 52 . 117 . 47 20 . . . Projectiles . | . . . . . . . . . . . . . Explosions 101 | . . . . 52 . 21 . 8 20 . . . Melee 135 | . . . . . . 96 . 39 . . . . Knockbacks 5 | . . . . 1 . 4 . . . . . . Impact 4 | . . . . 1 . 3 . . . . . . Kinetic . | . . . . . . . . . . . . . Secondary 1 | . . . . . . 1 . . . . . . Self-Inflicted Damage 584 | . . . . 119 . 269 . 33 163 . . . Shots 16 | . . . . 3 . 8 . 1 4 . . . Rammed 19 | . . 3 . 5 1 1 1 . 8 . . . Targets Rammed 21 | 1 . 3 . 5 1 1 1 . 9 . . . Kicked . | . . . . . . . . . . . . . Crushed 2 | 1 . . . . . . . . 1 . . . Highest Temperature 300 | . 30 90 . 300 . 10 205 131 9 222 7 . Average Temperature 51 | . 10 31 . 104 . 4 95 34 8 50 3 . Received Heat Transfer 1570 | . 261 72 . 206 63 194 81 153 348 138 54 . Effects 2 | . . . . 2 . . . . . . . . Interference 2 | . . . . 2 . . . . . . . . Siege Activations . | . . . . . . . . . . . . . Robots Corrupted . | . . . . . . . . . . . . . Combat Hostiles . | . . . . . . . . . . . . . Parts Fried 4 | . . . . . . 1 . . 3 . . . Impact Corruptions 4 | . . . . . . 4 . . . . . . Robots Melted . | . . . . . . . . . . . . . Combat Hostiles . | . . . . . . . . . . . . . Parts Melted 5 | . . . . 2 . . . 2 . 1 . . Heat Transferred 2427 | . . 148 . 729 . . . . 725 300 300 225 Parts Sabotaged . | . . . . . . . . . . . . . Parts Stolen . | . . . . . . . . . . . . . Parts Stripped . | . . . . . . . . . . . . . Power Chain Reactions 5 | . . . . 1 . . . . 4 . . . Missiles Intercepted . | . . . . . . . . . . . . . Alert | -11 -10 -10 -10 -9 -8 -8 -8 -8 -7 -7 -7 -7 ------- Run | Jun Mat Min Exi Min Mat Gar Mat Gar Fac Low Low Dat Peak Influence 935 | 20 217 214 . 154 190 618 606 935 819 . . . Initial 490 | . 13 39 . . 57 123 300 105 490 . . . Average 401 | 10 94 101 . 87 119 396 354 574 656 . . . Maximum Alert Level 3 | . 1 1 . . . 2 2 3 3 . . . Low Security (%) 32 | 100 94 97 . 100 100 7 12 7 . . . . Level 1 18 | . 5 2 . . . 58 48 19 . . . . Level 2 33 | . . . . . . 34 38 41 64 . . . Level 3 15 | . . . . . . . . 31 35 . . . Level 4 . | . . . . . . . . . . . . . Level 5 . | . . . . . . . . . . . . . High Security . | . . . . . . . . . . . . . Max Security . | . . . . . . . . . . . . . Squads Dispatched 15 | . 2 . . 1 2 . . . 9 . 1 . Investigation 7 | . 2 . . . 2 . . . 3 . . . Extermination 3 | . . . . . . . . . 3 . . . Reinforcement 1 | . . . . . . . . . 1 . . . Assault 4 | . . . . 1 . . . . 2 . 1 . Garrison . | . . . . . . . . . . . . . Intercept . | . . . . . . . . . . . . . Searches Triggered . | . . . . . . . . . . . . . Construction Impeded 1 | . . . . . . . . . 1 . . . Haulers Reinforced . | . . . . . . . . . . . . . Active Scanning Responses . | . . . . . . . . . . . . . Cargo Convoy Interrupts . | . . . . . . . . . . . . . Stealth | -11 -10 -10 -10 -9 -8 -8 -8 -8 -7 -7 -7 -7 --------- Run | Jun Mat Min Exi Min Mat Gar Mat Gar Fac Low Low Dat Distress Signals 4 | . . . . . 1 1 1 . 1 . . . Communications Jammed . | . . . . . . . . . . . . . Distress Signals . | . . . . . . . . . . . . . Times Spotted 158 | . 14 8 . 14 6 19 18 21 40 5 10 3 Peak Tracking Total 10 | . 4 3 . 5 3 5 3 6 10 4 9 3 Tactical Retreats 5 | . . . . 1 . 2 . . 2 . . . Traps | -11 -10 -10 -10 -9 -8 -8 -8 -8 -7 -7 -7 -7 ------- Run | Jun Mat Min Exi Min Mat Gar Mat Gar Fac Low Low Dat Traps Triggered 10 | . . . . . 1 6 1 1 1 . . . Indirectly 1 | . . . . . . . . . 1 . . . Trap Hack Attempts . | . . . . . . . . . . . . . Triggered . | . . . . . . . . . . . . . Disarmed . | . . . . . . . . . . . . . Reprogrammed . | . . . . . . . . . . . . . Reused 1 | . . . . . . 1 . . . . . . Traps Extracted . | . . . . . . . . . . . . . Installed 1 | . . . . . . 1 . . . . . . Triggered 1 | . . . . . . 1 . . . . . . Most Traps Carried 5 | . . . . 5 5 5 1 . . . . . Power Sources Rigged 2 | . . . . . . . . 2 . . . . Exploded 2 | . . . . . . 2 . . . . . . Machines | -11 -10 -10 -10 -9 -8 -8 -8 -8 -7 -7 -7 -7 ---------- Run | Jun Mat Min Exi Min Mat Gar Mat Gar Fac Low Low Dat Machines Disabled 13 | . 1 . . . . 2 4 5 1 . . . Max in Single Turn 1 | . 1 . . . . 1 . 1 1 . . . Garrison Relay 5 | . . . . . . 1 . 4 . . . . Machines Repaired . | . . . . . . . . . . . . . Machines Sabotaged . | . . . . . . . . . . . . . Overloaded Fab Kills 3 | . . . . . . . . . 3 . . . Hacking | -11 -10 -10 -10 -9 -8 -8 -8 -8 -7 -7 -7 -7 --------- Run | Jun Mat Min Exi Min Mat Gar Mat Gar Fac Low Low Dat Machines Accessed 38 | . 4 . 2 1 6 3 7 1 9 1 . 4 Terminals 21 | . 3 . . 1 4 3 5 1 4 . . . Fabricators 3 | . . . . . . . . . 3 . . . Repair Stations 2 | . . . . . . . 1 . 1 . . . Recycling Units 2 | . 1 . . . 1 . . . . . . . Scanalyzers 1 | . . . . . . . . . 1 . . . Garrison Access 2 | . . . . . 1 . 1 . . . . . Total Hacks 105 | . 12 . 2 5 11 6 15 1 23 1 . 29 Successful 64 | . 3 . 2 1 6 1 8 1 12 1 . 29 Failed 41 | . 9 . . 4 5 5 7 . 11 . . . Catastrophic 13 | . 3 . . 1 4 . 3 . 2 . . . Database Lockouts . | . . . . . . . . . . . . . Manual 40 | . 6 . 1 5 7 1 10 . 10 . . . Terminals 54 | . 10 . . 5 9 6 13 1 10 . . . Fabricators 8 | . . . . . . . . . 8 . . . Repair Stations 4 | . . . . . . . 1 . 3 . . . Recycling Units 3 | . 2 . . . 1 . . . . . . . Scanalyzers 2 | . . . . . . . . . 2 . . . Garrison Access 2 | . . . . . 1 . 1 . . . . . Terminal Hacks 47 | . 2 . 2 1 2 1 5 1 3 1 . 29 Record 12 | . . . 1 . . . . . . . . 11 Part Schematic 13 | . 1 . . 1 . . . . . . . 11 Robot Schematic 4 | . . . . . . . . . . . . 4 Robot Analysis 1 | . . . . . . . . . 1 . . . Prototype ID Bank 4 | . . . . . . . 1 . . . . 3 Open Door 1 | . . . . . . . . . . 1 . . Branch Access Points 2 | . . . . . 1 . . . 1 . . . Emergency Access Points 2 | . . . . . . 1 . 1 . . . . Terminal Index 2 | . 1 . . . . . . . 1 . . . Garrison Index 2 | . . . . . 1 . 1 . . . . . Unreport Threat 3 | . . . . . . . 3 . . . . . EX-Prototype ID Bank 1 | . . . 1 . . . . . . . . . Fabricator Hacks 2 | . . . . . . . . . 2 . . . Network Status 2 | . . . . . . . . . 2 . . . Repair Station Hacks . | . . . . . . . . . . . . . Recycling Unit Hacks . | . . . . . . . . . . . . . Scanalyzer . | . . . . . . . . . . . . . Garrison Access Hacks 2 | . . . . . 1 . 1 . . . . . Unlock Access 2 | . . . . . 1 . 1 . . . . . Unauthorized Hacks 13 | . 1 . . . 3 . 2 . 7 . . . Terminals 3 | . . . . . 2 . 1 . . . . . Botnet 3 | . . . . . 2 . 1 . . . . . Fabricators 5 | . . . . . . . . . 5 . . . Report 1 | . . . . . . . . . 1 . . . Liberate 1 | . . . . . . . . . 1 . . . Haulers 1 | . . . . . . . . . 1 . . . Overload 1 | . . . . . . . . . 1 . . . Download 1 | . . . . . . . . . 1 . . . Repair Stations 2 | . . . . . . . 1 . 1 . . . Mechanics 2 | . . . . . . . 1 . 1 . . . Recycling Units 2 | . 1 . . . 1 . . . . . . . Tunnel 2 | . 1 . . . 1 . . . . . . . Scanalyzers 1 | . . . . . . . . . 1 . . . Extract 1 | . . . . . . . . . 1 . . . Garrison Access . | . . . . . . . . . . . . . Data Cores Recovered 2 | . . . . . 1 . 1 . . . . . Used 1 | . . . . . . . 1 . . . . . Hacking Detections 24 | . 3 . . 1 4 3 6 . 7 . . . Full Trace Events 5 | . 2 . . 1 1 1 . . . . . . Feedback Events . | . . . . . . . . . . . . . Feedback Blocked . | . . . . . . . . . . . . . Robot Schematics Acquired 4 | . . . . . . . . . . . . 4 Robots Built . | . . . . . . . . . . . . . Authchips . | . . . . . . . . . . . . . Time . | . . . . . . . . . . . . . Total Robot Build Rating . | . . . . . . . . . . . . . Part Schematics Acquired 16 | . 1 . . 1 . . . . 3 . . 11 Parts Built . | . . . . . . . . . . . . . Authchips . | . . . . . . . . . . . . . Time . | . . . . . . . . . . . . . Total Part Build Rating . | . . . . . . . . . . . . . Parts Repaired . | . . . . . . . . . . . . . Time . | . . . . . . . . . . . . . Parts Recycled . | . . . . . . . . . . . . . Recycled Matter . | . . . . . . . . . . . . . Retrieved Matter . | . . . . . . . . . . . . . Retrieved Components . | . . . . . . . . . . . . . Parts Scanalyzed . | . . . . . . . . . . . . . Part Schematics Acquired . | . . . . . . . . . . . . . Parts Damaged . | . . . . . . . . . . . . . Bothacking | -11 -10 -10 -10 -9 -8 -8 -8 -8 -7 -7 -7 -7 ------------ Run | Jun Mat Min Exi Min Mat Gar Mat Gar Fac Low Low Dat Used RIF Installer 3 | . . . . . . 1 . 2 . . . . Hotswap 1 | . . . . . . . . 1 . . . . Robot Detection 1 | . . . . . . . . 1 . . . . Robots Hacked 9 | . . . . . . . 1 1 5 2 . . Non-combat 3 | . . . . . . . 1 . 2 . . . Combat 6 | . . . . . . . . 1 3 2 . . Robot Hacks Applied 9 | . . . . . . . 1 1 5 2 . . drop_inventory 2 | . . . . . . . . . 2 . . . spike_heat 1 | . . . . . . . . . . 1 . . overload_power 1 | . . . . . . . . . 1 . . . amplify_resonance 1 | . . . . . . . . . . 1 . . formatsys_low 1 | . . . . . . . 1 . . . . . formatsys_high 3 | . . . . . . . . 1 2 . . . Relay Couplers Released 21 | . . . . . . 5 . 16 . . . . Machine Destruction 21 | . . . . . . 5 . 16 . . . . Attached 4 | . . . . . . . 1 1 1 1 . . Fabnet Peak Effective % . | . . . . . . . . . . . . . Robots Rewired 7 | . . . . . . 3 . 4 . . . . Allies Hacked . | . . . . . . . . . . . . . Hacks Repelled . | . . . . . . . . . . . . . Allies | -11 -10 -10 -10 -9 -8 -8 -8 -8 -7 -7 -7 -7 -------- Run | Jun Mat Min Exi Min Mat Gar Mat Gar Fac Low Low Dat Total Allies 12 | . . . . 1 . 3 1 5 2 . . . Largest Group 4 | . . . . 1 . 3 4 4 1 . . . Highest-Rated Group 134 | . . . . 31 . 120 134 134 32 . . . Highest-Rated Ally 40 | . . . . 31 . 40 40 40 32 . . . Total Orders 5 | . . . . . . . 3 2 . . . . STAY 1 | . . . . . . . . 1 . . . . FOLLOW 2 | . . . . . . . 1 1 . . . . AID 2 | . . . . . . . 2 . . . . . Ally Attacks 102 | . . . . 10 . . 47 30 15 . . . Total Damage 2594 | . . . . 143 . . 1202 820 429 . . . Kills 32 | . . . . 1 . . 19 9 3 . . . Allies Corrupted 1 | . . . . . . . . . 1 . . . Allies Melted . | . . . . . . . . . . . . . Intel | -11 -10 -10 -10 -9 -8 -8 -8 -8 -7 -7 -7 -7 ------- Run | Jun Mat Min Exi Min Mat Gar Mat Gar Fac Low Low Dat Robot Analysis Total 132 | . . . . . . . . . 1 . . 131 Derelict Logs Recovered 5 | . . 1 . 1 . . . . . 1 2 . Drone Launches . | . . . . . . . . . . . . . Drone Recoveries . | . . . . . . . . . . . . . Exploration | -11 -10 -10 -10 -9 -8 -8 -8 -8 -7 -7 -7 -7 ------------- Run | Jun Mat Min Exi Min Mat Gar Mat Gar Fac Low Low Dat Turns Passed 9861 | 186 639 470 758 559 267 973 914 1580 1709 910 669 227 Spaces Moved 5598 | 114 319 263 467 295 220 729 428 835 901 544 397 86 Core 470 | 36 . . . . . 434 . . . . . . Treads 4157 | 78 319 263 467 295 . . 375 835 570 544 397 14 Legs 242 | . . . . . . 188 53 . 1 . . . Wheels 729 | . . . . . 220 107 . . 330 . . 72 Hover . | . . . . . . . . . . . . . Flight . | . . . . . . . . . . . . . Fastest Speed 50 | 50 160 160 160 160 95 50 160 160 135 160 160 135 Average Speed 147 | 125 160 160 160 160 95 88 173 162 155 160 160 142 Slowest Speed 260 | 160 160 160 160 160 95 260 260 165 260 160 160 240 Overloaded Moves . | . . . . . . . . . . . . . Propulsion Burnouts . | . . . . . . . . . . . . . Robots Hopped . | . . . . . . . . . . . . . Cave-ins Triggered . | . . . . . . . . . . . . . Exploration Rate (%) 53 | 5 51 50 89 74 24 79 33 70 24 73 51 78 Regions Visited 12 Branch Regions 6 Pre-discovered Areas 27 | . 1 . 1 1 1 . . . . . . 23 Known Exits Taken 3 | . . . . . 1 . 1 . 1 . . . Unknown Exits Taken 7 | 1 1 1 1 1 . . . . . 1 1 . Scrap Searched 8 | . . 1 . 3 . . . . . 1 3 . Spaces Dug 20 | . . . . . 1 1 . 17 1 . . . Terrain Destroyed 276 | . . . . 110 3 55 . 71 37 . . . Melee 3 | . . . . . 1 1 . . 1 . . . Projectile 4 | . . . . . 2 2 . . . . . . AOE 269 | . . . . 110 . 52 . 71 36 . . . Terrain Rammed . | . . . . . . . . . . . . . Walls Destroyed . | . . . . . . . . . . . . . Machines Disabled . | . . . . . . . . . . . . . Actions | -11 -10 -10 -10 -9 -8 -8 -8 -8 -7 -7 -7 -7 --------- Run | Jun Mat Min Exi Min Mat Gar Mat Gar Fac Low Low Dat Total 6613 | 137 381 284 480 338 259 964 574 970 1093 568 412 153 Wait 246 | 1 18 3 . 2 10 55 68 17 43 2 5 22 Move 5587 | 113 318 262 466 294 220 728 428 833 900 543 396 86 Hop . | . . . . . . . . . . . . . Pick Up 84 | 7 8 . 5 6 5 16 7 9 15 4 . 2 Fast Attach 57 | 7 1 1 . 2 3 9 15 7 11 1 . . Attach 29 | . . 1 . 3 4 6 2 1 5 1 . 6 Detach 7 | . . . . . 1 3 1 . 2 . . . Swap 72 | . 2 . 4 1 3 4 11 18 24 3 1 1 Drop 90 | . 1 . 5 3 3 11 24 13 23 4 1 2 Fire 246 | 8 33 14 . 22 8 31 13 35 58 10 9 5 Melee 100 | . . . . . 1 30 3 34 3 . . 29 Ram 2 | . . . . . 1 . . . 1 . . . Kick . | . . . . . . . . . . . . . Crush 19 | 1 . 3 . 5 . 1 1 . 8 . . . Escape Stasis 69 | . . . . . . 69 . . . . . . Rewire 2 | . . . . . . . 1 1 . . . . Trap 3 | . . . . . . 1 . 2 . . . . Miscellaneous . | . . . . . . . . . . . . . Route ------- -11/Junkyard -10/Materials (discovered 2 exits: [*Min x2]) -10/Mines (discovered 2 exits: [*Mat] / *Exi) -10/Exiles (discovered 2 exits: *Min x2) -9/Mines (discovered 2 exits: *Mat x2) -8/Materials (discovered 3 exits: Fac x2 / Gar) -8/Garrison (discovered 4 exits: *Fac x3 / *Mat) -8/Materials -8/Garrison (discovered 2 exits: *Fac x2) -7/Factory (discovered 4 exits: [*Fac] / *Sto / *Low x2) -7/Lower Caves -7/Lower Caves -7/Data Miner (discovered 1 exit: [*Pro]) History --------- Turn | Location | Event 4 | -11/Junkyard | Discovered new exit (range 15) 187 | -11/Junkyard | Entered Materials 187 | -10/Materials | Discovered new exit (range 9) 302 | -10/Materials | Build established: Mutant 674 | -10/Materials | Discovered new exit (range 15) 826 | -10/Materials | Entered Mines 928 | -10/Mines | Learned 8 Materials zone layouts 1023 | -10/Mines | Discovered new exit (range 4) 1178 | -10/Mines | Assembled infested the area 1288 | -10/Mines | Deemed a non-threat by the Exiles lab entrance 1290 | -10/Mines | Discovered new exit (range 5) 1296 | -10/Mines | Entered Exiles 1320 | -10/Exiles | Discovered new exit (range 15) 1356 | -10/Exiles | Met 8R-AWN 1383 | -10/Exiles | Met EX-HEX 1444 | -10/Exiles | Met EX-DEC 1454 | -10/Exiles | Learned location of Zion (-6) 1543 | -10/Exiles | Visited The Gauntlet 1639 | -10/Exiles | Build established: Scavenger-Mutant 1772 | -10/Exiles | Met EX-BIN 1795 | -10/Exiles | Aligned with FarCom system 1796 | -10/Exiles | Given EX-Vault access code 1835 | -10/Exiles | Opened EX-Vault 1853 | -10/Exiles | Found PSU Rigger 1889 | -10/Exiles | Warned to stay clear of 0b10 Research branches 2035 | -10/Exiles | Discovered new exit (range 14) 2054 | -10/Exiles | Left Exiles lab with PSU Rigger 2054 | -10/Exiles | Entered Mines 2121 | -9/Mines | Lost 3 parts (1p1u1w) 2151 | -9/Mines | Discovered new exit (range 10) 2152 | -9/Mines | Met a Derelict testing a Signal Generator 2301 | -9/Mines | Received a Rocket Launcher from a helpful Derelict 2345 | -9/Mines | Found a hidden stash of uninstalled traps 2481 | -9/Mines | Excavation squad dispatched 2481 | -9/Mines | A large section of the Mines collapsed 2482 | -9/Mines | Core integrity fell below 50% 2579 | -9/Mines | Discovered new exit (range 13) 2613 | -9/Mines | Entered Materials 2613 | -8/Materials | Evolved 4 slots: Propulsion x2, Utility x2 2614 | -8/Materials | Identified exit to Factory 2654 | -8/Materials | Build established: Trapper-Mutant 2880 | -8/Materials | Identified exit to Garrison 2880 | -8/Materials | Entered Garrison 2982 | -8/Garrison | Triggered checkpoint 3026 | -8/Garrison | Garrison Relay disabled 3144 | -8/Garrison | Triggered checkpoint 3196 | -8/Garrison | Triggered checkpoint 3218 | -8/Garrison | Lost 6 parts (1p4n1w) 3226 | -8/Garrison | Triggered checkpoint 3289 | -8/Garrison | Discovered exit to Factory (range 13) 3432 | -8/Garrison | Discovered exit to Factory (range 10) 3474 | -8/Garrison | Build established: Mutant 3484 | -8/Garrison | Discovered exit to Factory (range 8) 3490 | -8/Garrison | Installed Relay Interface Framework 3514 | -8/Garrison | Triggered checkpoint 3675 | -8/Garrison | Core integrity fell below 50% 3764 | -8/Garrison | Triggered checkpoint 3824 | -8/Garrison | Discovered new exit (range 5) 3853 | -8/Garrison | Entered Materials 3853 | -8/Materials | Accompanied by 3 allies 3901 | -8/Materials | Build established: Bothacker-Mutant 4759 | -8/Materials | Identified exit to Garrison 4767 | -8/Materials | Entered Garrison 4767 | -8/Garrison | Accompanied by 4 allies 4808 | -8/Garrison | Triggered checkpoint 5178 | -8/Garrison | Triggered checkpoint 5510 | -8/Garrison | Discovered exit to Factory (range 10) 5514 | -8/Garrison | Triggered checkpoint 5551 | -8/Garrison | Triggered checkpoint 5640 | -8/Garrison | Expanded RIF knowledge: Robot Detection 5792 | -8/Garrison | Triggered checkpoint 5792 | -8/Garrison | Lost 3 parts (1p2n) 5802 | -8/Garrison | Garrison Relay disabled 5853 | -8/Garrison | Garrison Relay disabled 5941 | -8/Garrison | Garrison Relay disabled 6180 | -8/Garrison | Discovered exit to Factory (range 15) 6250 | -8/Garrison | Expanded RIF knowledge: Hotswap 6347 | -8/Garrison | Entered Factory 6347 | -7/Factory | Accompanied by 1 ally 6347 | -7/Factory | Evolved 2 slots: Utility x2 6370 | -7/Factory | Identified exit to Storage 6370 | -7/Factory | Identified exit to Lower Caves 6904 | -7/Factory | Found Powered Armor 6907 | -7/Factory | Found Powered Armor 6910 | -7/Factory | Found Powered Armor 7084 | -7/Factory | Discovered new exit (range 15) 7947 | -7/Factory | First assault squad dispatched 8056 | -7/Factory | Entered Lower Caves 8330 | -7/Lower Caves | Encountered a Warlord checkpoint 8503 | -7/Lower Caves | Attracted the attention of an 0b10 checkpoint 8603 | -7/Lower Caves | Learned Factory security intel 8641 | -7/Lower Caves | Discovered new exit (range 5) 8966 | -7/Lower Caves | Entered another Lower Caves area 9155 | -7/Lower Caves | Learned Factory stockpile data 9203 | -7/Lower Caves | Learned Factory garrison access intel 9407 | -7/Lower Caves | Attracted the attention of an 0b10 checkpoint 9585 | -7/Lower Caves | Discovered new exit (range 4) 9628 | -7/Lower Caves | Attracted the attention of an 0b10 outpost 9635 | -7/Lower Caves | Entered Data Miner 9635 | -7/Data Miner | Discovered new exit (range 6) 9673 | -7/Data Miner | Met Data Miner 9708 | -7/Data Miner | Learned location of Section 7 (-2) 9708 | -7/Data Miner | Acquired the access code to Warlord's prototype stash 9730 | -7/Data Miner | Received God Mode back door access code from Data Miner 9741 | -7/Data Miner | Destroyed Data Miner 9743 | -7/Data Miner | Interfaced with the Data Conduit 9822 | -7/Data Miner | Core integrity fell below 50% 9856 | -7/Data Miner | Core integrity fell below 20% 9862 | -7/Data Miner | Destroyed by Enhanced Grunt with Neutron Cannon Last Messages --------------- 09743_ Interfacing with system... Downloaded 131 analysis records. Downloaded 719 prototype IDs. Downloaded central machine database. Downloaded 22 destinations. Downloaded encryption format records. Connection remotely terminated. 09790_ Enhanced Grunt Antimatter Reactor severed. 09801_ Arm. Wheel destroyed. 09818_ Enhanced Grunt Adv. Heat Sink severed. 09825_ Powered Armor destroyed. 09832_ Lgt. Treads destroyed. 09834_ Enhanced Grunt destroyed. 09844_ Titanium Leg destroyed. 09844_ Gatling Laser destroyed. 09849_ Flak Gun destroyed. 09854_ Enhanced Grunt Lyr. Medium Armor Plating severed. 09860_ Imp. Power Shielding destroyed. 09860_ Mic. Nuclear Core destroyed. 09862_ Enhanced Grunt destroyed. Map ----- +----------------------------------------------------+ | | | | | | | | | | | | | | | | | | | | | | | | | ????????????????????????????? | | ????????????????????????????? | | ????????????????????????????? | | ????????????????????????????? | | ????????????????????????????? | | ????#################???????? | | ???##"""""""""""""""######??? | | ??##""""""""" """"""""#### | | ??#"""""""""" | | ??#""= "" | | ??#"!!*" ! | | ??#"g"""" !! | | ??#!!%""""*= | | ??#%@""""" """"" | | ??#"]"""""" """"### | | ??##!"""""" """""###?? | | ???##"""""""" "#####???? | | ?????#######"## "#???????? | | ???????????#"### "#???????? | | ???????????#"### "#???????? | | ???????????#"## "#???????? | | ???????????#"## "#???????? | | ?????????????# "#???????? | | ?????????????### "#???????? | | ???????????????# "##??????? | | ??????????????## ""#??????? | | ?????????????## ""#??????? | | ??????????##"#"X ""#??????? | | ??????????""""" "####???? | | ??????????""""" X"""""???? | | ??????????##"#"X "##"#???? | | ???????????#?## X""""#???? | | ??????????????## "##"#???? | | ???????????????#######??????? | | ????????????????????????????? | | ????????????????????????????? | | ????????????????????????????? | | ????????????????????????????? | +----------------------------------------------------+ Best States ------------- Heat Dissipation 48 Energy Generation 16 Energy Capacity 290 Matter Stores 300 Matter Capacity 300 Sight Range 16 Terrain Scan Density 10 Armor Coverage 400 Power Shielding 66 Melee Speed Boost 20 Evasion (%) 55 Recoil Reduction 4 Offensive Hacking 10 Relay Coupler Types 3 Relay Coupler Value 48 Authchip Count 2 Item Schematics ----------------- Hcp. Storage Unit | -10/Materials | Hacked Datajack | -9/Mines | Hacked Hvy. Ion Cannon | -7/Factory | Extracted Med. Treads | -7/Factory | Extracted Micro-nuke Launcher | -7/Factory | Downloaded Combat Drone Bay | -7/Data Miner | Free Lgt. Regenerative Plating | -7/Data Miner | Free Cld. Aerolev Unit | -7/Data Miner | Free Gravity Neutralizer | -7/Data Miner | Free Imp. Heavy Machine Gun | -7/Data Miner | Free Linear Gravjet | -7/Data Miner | Free Imp. Component Analysis Suite | -7/Data Miner | Free Variable Charge Gun | -7/Data Miner | Free Adv. Signal Interpreter | -7/Data Miner | Free Adv. Trap Scanner | -7/Data Miner | Free Hvy. Gauss Cannon | -7/Data Miner | Free Robot Schematics ------------------ B-48 Gladiator | -7/Data Miner | Free O-24 Administrator | -7/Data Miner | Free G-47 Trooper | -7/Data Miner | Free G-50 Soldier | -7/Data Miner | Free Fabricated ------------ Nothing Alien Tech Used ----------------- None Achievements -------------- Ride The Lightning Challenges ------------ None Game ------ Seed GatlingAerolevInterpreter Manual? 0 Play Time 01:33:48 Cumulative 355.1 hours Start 2023.05.15 @ 17:15:39 End 2023.05.15 @ 20:54:58 Sessions 1 Manual Loads 0 Difficulty Rogue Special Mode None Game No. 228 Rogue 205 Adventurer 6 Explorer 17 Win Type - Total 25 Types 17/0/4/1/0/1/1/1/0 Lore% 95 Gallery% 95 Achievement% 79 Wizard Run 0 Options --------- ASCII 0 Keyboard 0 Movement Numpad Keybinds 0 Fullscreen 1 Font 12/Fuzzy Map View 83x54 Tactical HUD 1 Map Filters NONE Filters NONE Steam 1 RUN: effc2332-0013-4f78-b6f8-bf064c978f15